Cogmind - Beta 9.6 @@@ ROGUE MODE // 2020.09.03 @ 21:52:03 Player: Cracklepappy Result: Self-destructed Performance ------------- Evolutions (1) 500 Regions Visited (3) 600 Robots Destroyed (29) 145 Value Destroyed (575) 575 Prototype IDs (4) 80 Alien Tech Used (0) 0 Bonus (0) 0 TOTAL SCORE: 1900 Bonus ------- None Cogmind --------- Core Integrity 350/400 Matter 300/300 Energy 250/250 System Corruption 0% Temperature Cool (0) Movement Rolling (100) Ox2 Location -9/Materials Parts ------- > --- POWER (1) -------- Ion Engine > --- PROPULSION (2) --- Wheel Wheel > --- UTILITY (4) ------ Large Storage Unit Large Storage Unit Light Armor Plating Medium Armor Plating > --- WEAPON (2) ------- Beam Cannon Assault Rifle > --- INVENTORY (16) --- Ion Engine Light Treads Light Treads Light Treads Light Treads Light Treads Light Treads Large Storage Unit Large Storage Unit High-capacity Matter Pod (200) Improved Terrain Scanner Medium Armor Plating Beam Cannon Particle Cannon Light Cannon Mining Laser Peak State ------------ > --- POWER ------------ Ion Engine > --- PROPULSION ------- Wheel Wheel > --- UTILITY ---------- Large Storage Unit Large Storage Unit Light Armor Plating Medium Armor Plating > --- WEAPON ----------- Beam Cannon Assault Rifle > --- INVENTORY -------- Ion Engine Light Treads Light Treads Light Treads Light Treads Wheel Wheel Large Storage Unit Large Storage Unit High-capacity Matter Pod Improved Terrain Scanner Beam Cannon Beam Cannon Particle Cannon Light Cannon Mining Laser [Rating: 11] Favorites ----------- Power Ion Engine Engine Ion Engine Propulsion Wheel Wheel Wheel Utility Large Storage Unit Storage Large Storage Unit Protection Light Armor Plating Weapon Assault Rifle Energy Gun Medium Laser Energy Cannon Beam Cannon Ballistic Gun Assault Rifle Build | -11 -10 -10 -9 ------- Run | Scr Mat Min Mat Slots Evolved 2 | . . . 2 Power . | . . . . Propulsion . | . . . . Utility 2 | . . . 2 Weapon . | . . . . Parts Attached 16 | 8 5 . 3 Power 1 | 1 . . . Engine 1 | 1 . . . Core . | . . . . Reactor . | . . . . Propulsion 5 | 2 2 . 1 Treads . | . . . . Leg . | . . . . Wheel 5 | 2 2 . 1 Hover . | . . . . Flight . | . . . . Utility 6 | 2 2 . 2 Device . | . . . . Storage 4 | 2 2 . . Processor . | . . . . Hackware . | . . . . Protection 2 | . . . 2 Artifact . | . . . . Weapon 4 | 3 1 . . Energy Gun 2 | 2 . . . Energy Cannon 1 | . 1 . . Ballistic Gun 1 | 1 . . . Ballistic Cannon . | . . . . Launcher . | . . . . Special Weapon . | . . . . Impact Weapon . | . . . . Slashing Weapon . | . . . . Piercing Weapon . | . . . . Special Melee Weapon . | . . . . Unidentified Prototypes . | . . . . Parts Lost 2 | . 1 . 1 Power . | . . . . Propulsion 1 | . . . 1 Utility . | . . . . Weapon 1 | . 1 . . Highest Loss Streak 1 | . 1 . 1 Average Slot Usage (%) 99 | . 99 100 98 Engine 13 | . 14 14 11 Wheel 27 | . 28 28 22 Storage 27 | . 28 28 22 Protection 3 | . . . 20 Energy Gun 1 | . 3 . . Energy Cannon 11 | . 9 14 11 Ballistic Gun 13 | . 14 14 11 Naked Turns . | . . . . Heaviest Build 52 | 17 42 42 52 Greatest Support 26 | 26 26 20 20 Greatest Overweight (x) 2 | . 2 2 2 Average Overweight (x) 1 | . 1 2 2 Largest Inventory Capacity 16 | 8 16 16 16 Average Capacity 15 | 6 15 16 16 Most Carried 16 | 8 16 16 16 Average Carried 14 | 3 14 16 15 Final Capacity 16 | 8 16 16 16 Final Carried 16 | 8 16 16 16 Class Distribution -------------------- 100% | Mutant Dominant Class ---------------- Mutant | -10/Materials Mutant | -10/Mines Mutant | -9/Materials Resources | -11 -10 -10 -9 ----------- Run | Scr Mat Min Mat Matter Collected 795 | 319 156 232 88 Remotely . | . . . . Salvage Created 860 | 173 377 123 187 Parts 71 | 17 39 6 9 Haulers Intercepted 1 | . 1 . . Recyclers Shooed . | . . . . Parts Field Recycled . | . . . . Retrieved Matter . | . . . . Parts Self-Destructed . | . . . . Prevented . | . . . . Kills | -11 -10 -10 -9 ------- Run | Scr Mat Min Mat Combat Hostiles Destroyed 18 | . 9 5 4 Guns 9 | . 6 2 1 Cannons 9 | . 3 3 3 Classes Destroyed 8 | 2 5 . 1 Builder 1 | . 1 . . Tunneler 5 | 4 1 . . Hauler 1 | . 1 . . Recycler 1 | 1 . . . Watcher 3 | . 3 . . Swarmer 7 | . 4 3 . Grunt 9 | . 5 2 2 Sentry 2 | . . . 2 Best Kill Streak 5 | 5 5 2 2 Combat Bots Only 3 | . 3 2 2 Max Kills in Single Turn 1 | 1 1 1 1 Gunslinging . | . . . . Exploded . | . . . . Melee . | . . . . Uniques/NPCs Destroyed . | . . . . Combat | -11 -10 -10 -9 -------- Run | Scr Mat Min Mat Damage Taken 606 | . 209 135 262 Core 131 | . 73 8 50 Absorbed by Shields . | . . . . Core Remaining (%) 83 | 100 . 67 . Volleys Fired 81 | 13 39 15 14 Largest 2 | 2 2 2 2 Hottest 80 | 70 80 80 80 Shots Fired 158 | 26 74 30 28 Gun 115 | 26 60 15 14 Cannon 43 | . 14 15 14 Launcher . | . . . . Special . | . . . . Kinetic 81 | 13 39 15 14 Thermal 77 | 13 35 15 14 Explosive . | . . . . Electromagnetic . | . . . . Robot Hit Streak 11 | 5 9 7 11 Robot Miss Streak 5 | 1 5 3 1 Penetration Max . | . . . . Secondary Targets 1 | . 1 . . Max Gunslinging Chain 1 | . 1 . . Shots Hit Robots 91 | 15 39 16 21 Core Hits 38 | 6 17 7 8 Critical Hits 1 | . 1 . . Critical Kills 1 | . 1 . . Critical Parts Destroyed . | . . . . Melee Attacks . | . . . . Impact . | . . . . Slashing . | . . . . Piercing . | . . . . Sneak Attacks . | . . . . Combat Hostiles . | . . . . Follow-up Attacks . | . . . . Damage Inflicted 1299 | 200 566 189 344 Guns 735 | 200 334 86 115 Cannons 564 | . 232 103 229 Explosions . | . . . . Melee . | . . . . Ramming . | . . . . Kinetic 445 | 63 181 86 115 Thermal 854 | 137 385 103 229 Explosive . | . . . . Electromagnetic . | . . . . Impact . | . . . . Slashing . | . . . . Piercing . | . . . . Highest Corruption . | . . . . Average Corruption . | . . . . Corruption Purged . | . . . . Overload Shots . | . . . . Overflow Damage 15 | . 15 . . Projectiles 15 | . 15 . . Explosions . | . . . . Melee . | . . . . Knockbacks . | . . . . Impact . | . . . . Kinetic . | . . . . Secondary . | . . . . Self-Inflicted Damage . | . . . . Shots . | . . . . Rammed . | . . . . Targets Rammed . | . . . . Kicked . | . . . . Crushed . | . . . . Highest Temperature 236 | 110 117 108 236 Average Temperature 57 | 52 44 41 100 Received Heat Transfer 162 | . 54 15 93 Siege Activations . | . . . . Robots Corrupted . | . . . . Combat Hostiles . | . . . . Parts Fried . | . . . . Impact Corruptions . | . . . . Robots Melted . | . . . . Combat Hostiles . | . . . . Parts Melted 1 | . 1 . . Heat Transferred 2035 | 407 925 222 481 Parts Sabotaged . | . . . . Parts Stolen . | . . . . Parts Stripped . | . . . . Power Chain Reactions . | . . . . Missiles Intercepted . | . . . . Alert | -11 -10 -10 -9 ------- Run | Scr Mat Min Mat Peak Influence 178 | 25 178 117 75 Average Influence 57 | 10 75 56 25 Maximum Alert Level . | . . . . Low Security (%) 100 | 100 100 100 100 Level 1 . | . . . . Level 2 . | . . . . Level 3 . | . . . . Level 4 . | . . . . Level 5 . | . . . . High Security . | . . . . Max Security . | . . . . Squads Dispatched 2 | . 2 . . Investigation 2 | . 2 . . Extermination . | . . . . Reinforcement . | . . . . Assault . | . . . . Garrison . | . . . . Intercept . | . . . . Construction Impeded . | . . . . Haulers Reinforced . | . . . . Stealth | -11 -10 -10 -9 --------- Run | Scr Mat Min Mat Distress Signals 2 | . 2 . . Communications Jammed . | . . . . Distress Signals . | . . . . Times Spotted 28 | . 18 6 4 Peak Tracking Total 4 | . 4 3 2 Tactical Retreats 3 | . 2 1 . Traps | -11 -10 -10 -9 ------- Run | Scr Mat Min Mat Traps Triggered 1 | . 1 . . Indirectly . | . . . . Trap Hack Attempts . | . . . . Triggered . | . . . . Disarmed . | . . . . Reprogrammed . | . . . . Reused . | . . . . Traps Extracted . | . . . . Installed . | . . . . Triggered . | . . . . Machines | -11 -10 -10 -9 ---------- Run | Scr Mat Min Mat Machines Disabled . | . . . . Max in Single Turn . | . . . . Machines Sabotaged . | . . . . Garrisons Compromised . | . . . . Overloaded Fab Kills . | . . . . Fab Network Shutdowns . | . . . . Hacking | -11 -10 -10 -9 --------- Run | Scr Mat Min Mat Machines Accessed 10 | . 8 . 2 Terminals 10 | . 8 . 2 Fabricators . | . . . . Repair Stations . | . . . . Recycling Units . | . . . . Scanalyzers . | . . . . Garrison Access . | . . . . Total Hacks 37 | . 32 . 5 Successful 16 | . 14 . 2 Failed 20 | . 17 . 3 Catastrophic 4 | . 4 . . Database Lockouts 3 | . 3 . . Manual 15 | . 14 . 1 Terminals 37 | . 32 . 5 Fabricators . | . . . . Repair Stations . | . . . . Recycling Units . | . . . . Scanalyzers . | . . . . Garrison Access . | . . . . Terminal Hacks 16 | . 14 . 2 Part Schematic 1 | . 1 . . Robot Analysis 2 | . 2 . . Prototype ID Bank 3 | . 3 . . Emergency Access Points 3 | . 3 . . Unreport Threat 4 | . 3 . 1 Locate Traps 2 | . 1 . 1 Zone Layout 1 | . 1 . . Fabricator Hacks . | . . . . Repair Station Hacks . | . . . . Recycling Unit Hacks . | . . . . Scanalyzer . | . . . . Garrison Access Hacks . | . . . . Unauthorized Hacks . | . . . . Terminals . | . . . . Fabricators . | . . . . Repair Stations . | . . . . Recycling Units . | . . . . Scanalyzers . | . . . . Garrison Access . | . . . . Data Cores Recovered . | . . . . Used . | . . . . Hacking Detections 10 | . 8 . 2 Full Trace Events . | . . . . Feedback Events . | . . . . Feedback Blocked . | . . . . Robot Schematics Acquired . | . . . . Robots Built . | . . . . Matter . | . . . . Time . | . . . . Total Robot Build Rating . | . . . . Part Schematics Acquired 1 | . 1 . . Parts Built . | . . . . Matter . | . . . . Time . | . . . . Total Part Build Rating . | . . . . Parts Repaired . | . . . . Time . | . . . . Parts Recycled . | . . . . Recycled Matter . | . . . . Retrieved Matter . | . . . . Retrieved Components . | . . . . Parts Scanalyzed . | . . . . Part Schematics Acquired . | . . . . Parts Damaged . | . . . . Bothacking | -11 -10 -10 -9 ------------ Run | Scr Mat Min Mat Used RIF Installer . | . . . . Robots Hacked . | . . . . Non-combat . | . . . . Combat . | . . . . Robot Hacks Applied . | . . . . Relay Couplers Released . | . . . . Robots Rewired . | . . . . Allies Hacked . | . . . . Hacks Repelled . | . . . . Allies | -11 -10 -10 -9 -------- Run | Scr Mat Min Mat Total Allies 3 | . . 3 . Largest Group 3 | . . 3 . Highest-Rated Group 40 | . . 40 . Highest-Rated Ally 16 | . . 16 . Total Orders . | . . . . Ally Attacks 7 | . . 7 . Total Damage 80 | . . 80 . Kills . | . . . . Allies Corrupted . | . . . . Allies Melted . | . . . . Intel | -11 -10 -10 -9 ------- Run | Scr Mat Min Mat Robot Analysis Total 2 | . 2 . . Derelict Logs Recovered 1 | . . 1 . Drone Launches . | . . . . Drone Recoveries . | . . . . Exploration | -11 -10 -10 -9 ------------- Run | Scr Mat Min Mat Turns Passed 1391 | 111 661 419 200 Spaces Moved 1054 | 57 515 346 136 Core 1 | 1 . . . Treads . | . . . . Legs . | . . . . Wheels 1053 | 56 515 346 136 Hover . | . . . . Flight . | . . . . Fastest Speed 50 | 50 90 100 100 Average Speed 99 | 89 99 100 100 Slowest Speed 100 | 100 100 100 100 Overloaded Moves . | . . . . Propulsion Burnouts . | . . . . Robots Hopped . | . . . . Cave-ins Triggered . | . . . . Exploration Rate (%) 51 | 4 93 95 15 Regions Visited 3 Branch Regions 1 Pre-discovered Areas . | . . . . Known Exits Taken . | . . . . Unknown Exits Taken 3 | 1 1 1 . Scrap Searched 1 | . . 1 . Spaces Dug . | . . . . Terrain Destroyed . | . . . . Melee . | . . . . Projectile . | . . . . AOE . | . . . . Actions | -11 -10 -10 -9 --------- Run | Scr Mat Min Mat Total 1244 | 86 597 389 172 Wait 52 | 1 9 29 13 Move 1051 | 56 514 345 136 Hop . | . . . . Pick Up 29 | 8 17 . 4 Fast Attach 9 | 7 1 . 1 Attach 2 | . . . 2 Detach . | . . . . Swap 5 | 1 4 . . Drop 15 | . 13 . 2 Fire 81 | 13 39 15 14 Melee . | . . . . Ram . | . . . . Kick . | . . . . Crush . | . . . . Escape Stasis . | . . . . Rewire . | . . . . Trap . | . . . . Miscellaneous . | . . . . Route ------- -11/Scrapyard -10/Materials (discovered 5 exits: *Mat x3 / [*Min x2]) -10/Mines (discovered 2 exits: *Mat x2) -9/Materials (discovered 1 exit: [*Min]) History --------- Turn | Location | Event 12 | -11/Scrapyard | Discovered new exit (range 16) 112 | -11/Scrapyard | Entered Materials 252 | -10/Materials | Discovered new exit (range 14) 333 | -10/Materials | Build established: Mutant 339 | -10/Materials | Discovered new exit (range 16) 414 | -10/Materials | Central database locked down 501 | -10/Materials | Discovered new exit (range 15) 665 | -10/Materials | Discovered new exit (range 13) 726 | -10/Materials | Discovered new exit (range 11) 773 | -10/Materials | Entered Mines 773 | -10/Mines | Discovered new exit (range 12) 791 | -10/Mines | Assisted by bots powering up and referring to "LRC-V3" 1013 | -10/Mines | Learned Materials stockpile data 1140 | -10/Mines | Discovered new exit (range 15) 1192 | -10/Mines | Entered Materials 1192 | -9/Materials | Evolved 2 slots: Utility x2 1193 | -9/Materials | Discovered new exit (range 8) 1392 | -9/Materials | Self-destructed Last Messages --------------- 01259_ Acquired 11 matter. 01301_ Wheel destroyed. 01314_ Y-45 Defender destroyed. 01318_ Acquired 29 matter. 01320_ Connecting with Terminal... 01320_ Current location identified: Materials >>Alert(Purge) Purged threat record, alert level lowered. 01333_ K-01 Serf collects debris. 01356_ Y-45 Defender destroyed. 01362_ Acquired 3 matter. 01364_ Acquired Lgt. Treads. 01366_ Dropped Wheel. 01367_ Acquired Lgt. Treads. 01372_ Connecting with Terminal... >>Traps(Locate) Found 12 traps in 2 arrays: 6x Shock Trap 6x Blade Trap Map updated. Map ----- +----------------------------------------------------+ | ?????????????????????????????????????????????????? | | ?????????????????????????????????????????????????? | | ?????????????????????????????????????????????????? | | ????[????????????????????????????????????????????? | | ?????????????????????????????????????????????????? | | ?????????????????????????????????????????????????? | | ?????????????????????????????????????????????????? | | ?????????????????????????????????????????????????? | | ?????????????????????????????????????????????????? | | ?????????????????????????????????????????????????? | | ??????????????????????#####??????????????????????? | | ?????????????????????# ^?????????????????????? | | ?????????????????????# ^ ?????????????????????? | | ?????????????????????# ?????????????????????? | | ?????????????????????# ?????????????????????? | | ?????????????????????# ^ """ "?????????????????? | | ?????????????????????# ^ """ "?????????????????? | | ?????????????????????# """ """ ?????????????? | | ?????????????????????# ^^ ??????????????? | | ????##########???????# ???????????????? | | ????# """ #???????# """ """???????????????? | | ????# """"" #???????# """ """ ? ?????????? | | ????# """"" ######### """ """ ?????????? | | ????# """"" # "????????? | | ????# """ + ????????? | | ????# # @ ????????? | | ????# #+##+###########+#####??????????????? | | ????# "T"*! # #????????????????????????????? | | ????# """[ = #"S #???????????????????????????!? | | ????######%###""" #????????????????????????????? | | ?????????###?# "" #????????????????????????????? | | ?????????????# #????????????????????????????? | | ?????????????# #????????????????????????????? | | ################+##########??????????????????????? | | ^^ ??????????????????? | | ^^ ??????????????????? | | ^^ ??????????????????? | | ###########/##################???????????????????? | | #???#! #??????????????????????????????? | | #???# """"" = #??????????????????????????????? | | #??# """"" #??????????????????????????????? | | ##??# [ """"" #??????????????????????????????? | | #???# #??????????????????????????????? | | ##???##############??????????????????????????????? | | | | | | | | | | | | | +----------------------------------------------------+ Best States ------------- Heat Dissipation 28 Energy Generation 10 Energy Capacity 250 Matter Stores 300 Matter Capacity 300 Sight Range 16 Terrain Scan Density 10 Armor Coverage 375 Evasion (%) 42 Item Schematics ----------------- Hcp. Storage Unit | -10/Materials | Hacked Robot Schematics ------------------ None Fabricated ------------ Nothing Alien Tech Used ----------------- None Achievements -------------- None Challenges ------------ None Game ------ Seed GravitonFissionProjector Manual? 0 Play Time 00:24:28 Cumulative 174.8 hours Start 2020.09.02 @ 18:33:16 End 2020.09.03 @ 21:52:03 Sessions 3 Manual Loads 0 Difficulty Rogue Special Mode None Game No. 204 Rogue 204 Adventurer 0 Explorer 0 Win Type - Total 2 Types 2/0/0/0/0/0/0 Lore% 62 Gallery% 73 Achievement% 54 Wizard Run 0 Options --------- ASCII 0 Keyboard 0 Movement Numpad Keybinds 0 Fullscreen 2 Font 24/Smallcaps Map View 76x50 Tactical HUD 1 Map Filters NONE Filters NONE Steam 1 RUN: e5ea8347-9ef8-4af1-91e6-304fadebe04d